fUSD/lending_fUSD_20250113
["ID","MTS","AMOUNT","RATE_DAILY","PERIOD"]
[348850937,1736809839428,-487.22519937,9.893e-05,2]
[348850938,1736809839437,-500.0,9.893e-05,2]
[348850939,1736809839448,-500.0,9.893e-05,2]
[348850940,1736809839457,-500.0,9.893e-05,2]
[348850941,1736809839466,-500.0,9.893e-05,2]
[348850943,1736809839476,-500.0,9.893e-05,2]
[348850945,1736809839485,-500.0,9.893e-05,2]
[348850947,1736809839495,-500.0,9.893e-05,2]
[348850948,1736809839504,-500.0,9.893e-05,2]
[348850950,1736809839513,-500.0,9.893e-05,2]
[348850951,1736809839523,-500.0,9.893e-05,2]
[348850952,1736809839535,-500.0,9.893e-05,2]
[348850953,1736809839544,-500.0,9.893e-05,2]
[348850954,1736809839554,-500.0,9.893e-05,2]
[348850955,1736809839563,-500.0,9.893e-05,2]
[348850957,1736809839575,-500.0,9.893e-05,2]
[348850958,1736809839584,-500.0,9.893e-05,2]
[348850959,1736809839593,-500.0,9.893e-05,2]
[348850960,1736809839603,-500.0,9.893e-05,2]
[348850961,1736809839612,-500.0,9.893e-05,2]
[348850962,1736809839622,-500.94369719,9.893e-05,2]
[348850963,1736809839631,-500.0,9.893e-05,2]
[348850964,1736809839640,-500.0,9.893e-05,2]
[348850965,1736809839649,-500.0,9.893e-05,2]
[348850966,1736809839658,-500.0,9.893e-05,2]
[348850967,1736809839667,-500.0,9.893e-05,2]
[348850969,1736809839677,-500.0,9.893e-05,2]
[348850971,1736809839687,-500.0,9.893e-05,2]
[348850973,1736809839696,-500.0,9.893e-05,2]
[348850974,1736809839706,-500.0,9.893e-05,2]
[348850975,1736809839715,-504.22,9.893e-05,2]
[348850976,1736809839724,-500.0,9.893e-05,2]
[348850977,1736809839733,-500.0,9.893e-05,2]
[348850979,1736809839742,-500.0,9.893e-05,2]
[348850980,1736809839752,-500.0,9.893e-05,2]
[348850982,1736809839761,-500.0,9.893e-05,2]
[348850983,1736809839770,-500.0,9.893e-05,2]
[348850984,1736809839779,-500.0,9.893e-05,2]
[348850985,1736809839788,-500.0,9.893e-05,2]
[348850986,1736809839798,-500.0,9.893e-05,2]
[348850987,1736809839807,-341.68729477,9.893e-05,2]
[348850988,1736809839819,-158.31270523,9.893e-05,2]
[348850989,1736809839828,-219.69242564,9.893e-05,2]
[348850990,1736809839846,-280.30757436,9.893e-05,2]
[348850991,1736809839855,-374.47112918,9.893e-05,2]
[348850992,1736809839864,-500.0,9.893e-05,2]
[348850993,1736809839921,-500.0,9.893e-05,2]
[348850994,1736809839930,-500.0,9.893e-05,2]
[348850995,1736809839939,-500.0,9.893e-05,2]
[348850996,1736809839949,-500.0,9.893e-05,2]
[348850997,1736809839957,-500.0,9.893e-05,2]
[348850998,1736809839967,-500.0,9.893e-05,2]
[348850999,1736809839976,-500.0,9.893e-05,2]
[348851000,1736809839986,-500.0,9.893e-05,2]
[348851001,1736809839997,-500.0,9.893e-05,2]
[348851002,1736809840007,-500.0,9.893e-05,2]
[348851003,1736809840016,-500.0,9.893e-05,2]
[348851004,1736809840027,-500.0,9.893e-05,2]
[348851005,1736809840037,-500.0,9.893e-05,2]
[348851006,1736809840046,-500.0,9.893e-05,2]
[348851007,1736809840055,-500.0,9.893e-05,2]
[348851008,1736809840065,-500.0,9.893e-05,2]
[348851009,1736809840074,-500.0,9.893e-05,2]
[348851010,1736809840083,-500.0,9.893e-05,2]
[348851011,1736809840094,-204.92918613,9.893e-05,2]
[348851012,1736809840104,-500.0,9.893e-05,2]
[348851013,1736809840114,-500.0,9.893e-05,2]
[348851014,1736809840123,-500.0,9.893e-05,2]
[348851015,1736809840133,-500.0,9.893e-05,2]
[348851016,1736809840142,-500.0,9.893e-05,2]
[348851017,1736809840152,-500.0,9.893e-05,2]
[348851018,1736809840161,-500.0,9.893e-05,2]
[348851019,1736809840171,-500.0,9.893e-05,2]
[348851020,1736809840180,-500.0,9.893e-05,2]
[348851021,1736809840190,-500.0,9.893e-05,2]
[348851022,1736809840200,-500.0,9.893e-05,2]
[348851023,1736809840209,-500.0,9.893e-05,2]
[348851024,1736809840219,-500.0,9.893e-05,2]
[348851025,1736809840228,-500.0,9.893e-05,2]
[348851026,1736809840238,-500.0,9.893e-05,2]
[348851027,1736809840248,-500.0,9.893e-05,2]
[348851028,1736809840257,-500.0,9.893e-05,2]
[348851029,1736809840266,-500.0,9.893e-05,2]
[348851030,1736809840275,-500.0,9.893e-05,2]
[348851031,1736809840285,-500.0,9.893e-05,2]
[348851032,1736809840294,-500.0,9.893e-05,2]
[348851033,1736809840303,-500.0,9.893e-05,2]
[348851034,1736809840312,-500.0,9.893e-05,2]
[348851035,1736809840321,-500.0,9.893e-05,2]
[348851036,1736809840330,-500.0,9.893e-05,2]
[348851037,1736809840340,-500.0,9.893e-05,2]
[348851038,1736809840349,-500.0,9.893e-05,2]
[348851040,1736809840359,-500.0,9.893e-05,2]
[348851042,1736809840368,-500.0,9.893e-05,2]
[348851044,1736809840377,-500.0,9.893e-05,2]
[348851046,1736809840386,-500.0,9.893e-05,2]
[348851048,1736809840395,-500.0,9.893e-05,2]
[348851050,1736809840404,-500.0,9.893e-05,2]
[348851052,1736809840415,-500.0,9.893e-05,2]
[348851054,1736809840425,-500.0,9.893e-05,2]
[348851056,1736809840434,-500.0,9.893e-05,2]
[348851058,1736809840443,-500.0,9.893e-05,2]
[348851060,1736809840452,-500.0,9.893e-05,2]
[348851062,1736809840461,-500.0,9.893e-05,2]
[348851064,1736809840470,-500.0,9.893e-05,2]
[348851065,1736809840481,-500.0,9.893e-05,2]
[348851067,1736809840490,-500.0,9.893e-05,2]
[348851069,1736809840499,-500.0,9.893e-05,2]
[348851071,1736809840508,-500.0,9.893e-05,2]
[348851073,1736809840518,-500.0,9.893e-05,2]
[348851075,1736809840529,-500.0,9.893e-05,2]
[348851077,1736809840539,-500.0,9.893e-05,2]
[348851079,1736809840548,-500.0,9.893e-05,2]
[348851081,1736809840557,-500.0,9.893e-05,2]
[348851083,1736809840568,-500.0,9.893e-05,2]
[348851085,1736809840577,-500.0,9.893e-05,2]
[348851087,1736809840586,-500.0,9.893e-05,2]
[348851089,1736809840595,-500.0,9.893e-05,2]
[348851091,1736809840605,-500.0,9.893e-05,2]
[348851093,1736809840614,-500.0,9.893e-05,2]
[348851095,1736809840623,-500.0,9.893e-05,2]
[348851097,1736809840632,-500.0,9.893e-05,2]
[348851099,1736809840641,-500.0,9.893e-05,2]
[348851101,1736809840650,-500.0,9.893e-05,2]
[348851103,1736809840659,-500.0,9.893e-05,2]
[348851105,1736809840669,-500.0,9.893e-05,2]
[348851107,1736809840679,-516.68,9.893e-05,2]
[348851109,1736809840689,-500.0,9.893e-05,2]
[348851111,1736809840698,-500.0,9.893e-05,2]
[348851113,1736809840707,-500.0,9.893e-05,2]
[348851114,1736809840715,-500.0,9.893e-05,2]
[348851116,1736809840724,-500.0,9.893e-05,2]
[348851118,1736809840734,-593.13,9.893e-05,2]
[348851120,1736809840743,-500.0,9.893e-05,2]
[348851122,1736809840752,-500.0,9.893e-05,2]
[348851124,1736809840761,-500.0,9.893e-05,2]
[348851126,1736809840771,-500.0,9.893e-05,2]
[348851128,1736809840780,-500.0,9.893e-05,2]
[348851130,1736809840789,-500.0,9.893e-05,2]
[348851132,1736809840798,-500.0,9.893e-05,2]
[348851134,1736809840806,-500.0,9.893e-05,2]
[348851136,1736809840815,-500.0,9.893e-05,2]
[348851138,1736809840824,-500.0,9.893e-05,2]
[348851140,1736809840833,-500.0,9.893e-05,2]
[348851141,1736809840842,-500.0,9.893e-05,2]
[348851142,1736809840851,-543.05875418,9.893e-05,2]
[348851143,1736809840861,-500.0,9.893e-05,2]
[348851144,1736809840869,-500.0,9.893e-05,2]
[348851145,1736809840878,-729.09,9.893e-05,2]
[348851146,1736809840888,-500.0,9.893e-05,2]
[348851147,1736809840897,-500.0,9.893e-05,2]
[348851148,1736809840906,-500.0,9.893e-05,2]
[348851149,1736809840915,-500.0,9.893e-05,2]
[348851150,1736809840924,-500.0,9.893e-05,2]
[348851151,1736809840933,-500.0,9.893e-05,2]
[348851152,1736809840942,-500.0,9.893e-05,2]
[348851153,1736809840951,-500.0,9.893e-05,2]
[348851154,1736809840960,-500.0,9.893e-05,2]
[348851155,1736809840969,-500.0,9.893e-05,2]
[348851156,1736809840978,-500.0,9.893e-05,2]
[348851157,1736809840988,-500.0,9.893e-05,2]
[348851158,1736809840997,-500.0,9.893e-05,2]
[348851159,1736809841007,-500.0,9.893e-05,2]
[348851160,1736809841016,-500.0,9.893e-05,2]
[348851161,1736809841026,-522.71,9.893e-05,2]
[348851162,1736809841036,-500.0,9.893e-05,2]
[348851163,1736809841047,-500.0,9.893e-05,2]
[348851164,1736809841057,-500.0,9.893e-05,2]
[348851165,1736809841066,-607.03628571,9.893e-05,2]
[348851166,1736809841075,-500.0,9.893e-05,2]
[348851167,1736809841084,-150.0,9.893e-05,2]
[348851168,1736809841093,-500.0,9.893e-05,2]
[348851169,1736809841103,-500.0,9.893e-05,2]
[348851170,1736809841113,-500.0,9.893e-05,2]
[348851171,1736809841124,-500.0,9.893e-05,2]
[348851172,1736809841134,-500.0,9.893e-05,2]
[348851173,1736809841144,-500.0,9.893e-05,2]
[348851174,1736809841154,-500.0,9.893e-05,2]
[348851175,1736809841164,-500.0,9.893e-05,2]
[348851176,1736809841173,-500.0,9.893e-05,2]
[348851177,1736809841183,-500.0,9.893e-05,2]
[348851178,1736809841192,-500.0,9.893e-05,2]
[348851179,1736809841201,-516.61090775,9.893e-05,2]
[348851180,1736809841211,-535.23,9.893e-05,2]
[348851181,1736809841220,-500.0,9.893e-05,2]
[348851182,1736809841229,-500.0,9.893e-05,2]
[348851183,1736809841237,-500.0,9.893e-05,2]
[348851184,1736809841247,-500.0,9.893e-05,2]
[348851185,1736809841256,-500.0,9.893e-05,2]
[348851186,1736809841265,-543.72432029,9.893e-05,2]
[348851187,1736809841274,-500.0,9.893e-05,2]
[348851188,1736809841283,-500.0,9.893e-05,2]
[348851189,1736809841292,-556.59891979,9.893e-05,2]
[348851190,1736809841302,-500.0,9.893e-05,2]
[348851191,1736809841312,-500.0,9.893e-05,2]
[348851192,1736809841322,-500.0,9.893e-05,2]
[348851193,1736809841331,-500.0,9.893e-05,2]
[348851194,1736809841340,-500.0,9.893e-05,2]
[348851195,1736809841350,-500.0,9.893e-05,2]
[348851196,1736809841359,-500.0,9.893e-05,2]
[348851197,1736809841368,-500.0,9.893e-05,2]
[348851198,1736809841378,-500.0,9.893e-05,2]
[348851199,1736809841387,-500.0,9.893e-05,2]
[348851200,1736809841397,-500.0,9.893e-05,2]
[348851201,1736809841406,-500.0,9.893e-05,2]
[348851202,1736809841417,-500.0,9.893e-05,2]
[348851203,1736809841427,-500.0,9.893e-05,2]
[348851204,1736809841436,-500.0,9.893e-05,2]
[348851205,1736809841446,-592.16,9.893e-05,2]
[348851206,1736809841456,-500.0,9.893e-05,2]
[348851207,1736809841465,-500.0,9.893e-05,2]
[348851208,1736809841475,-709.74,9.893e-05,2]
[348851209,1736809841484,-500.0,9.893e-05,2]
[348851210,1736809841493,-500.0,9.893e-05,2]
[348851211,1736809841502,-500.0,9.893e-05,2]
[348851212,1736809841511,-500.0,9.893e-05,2]
[348851213,1736809841521,-500.0,9.893e-05,2]
[348851214,1736809841535,-500.0,9.893e-05,2]
[348851215,1736809841543,-500.0,9.893e-05,2]
[348851216,1736809841553,-500.0,9.893e-05,2]
[348851217,1736809841562,-500.0,9.893e-05,2]
[348851218,1736809841573,-500.0,9.893e-05,2]
[348851219,1736809841585,-500.0,9.893e-05,2]
[348851220,1736809841594,-500.0,9.893e-05,2]
[348851221,1736809841605,-500.0,9.893e-05,2]
[348851222,1736809841616,-500.0,9.893e-05,2]
[348851223,1736809841626,-500.0,9.893e-05,2]
[348851224,1736809841635,-500.0,9.893e-05,2]
[348851225,1736809841645,-500.0,9.893e-05,2]
[348851226,1736809841654,-500.0,9.893e-05,2]
[348851227,1736809841663,-500.0,9.893e-05,2]
[348851228,1736809841673,-658.5,9.893e-05,2]
[348851229,1736809841682,-875.34,9.893e-05,2]
[348851230,1736809841692,-500.0,9.893e-05,2]
[348851231,1736809841701,-809.1,9.893e-05,2]
[348851232,1736809841710,-500.0,9.893e-05,2]
[348851233,1736809841719,-500.0,9.893e-05,2]
[348851234,1736809841729,-500.0,9.893e-05,2]
[348851235,1736809841739,-500.0,9.893e-05,2]
[348851236,1736809841749,-500.0,9.893e-05,2]
[348851237,1736809841758,-500.0,9.893e-05,2]
[348851238,1736809841767,-540.24,9.893e-05,2]
[348851239,1736809841776,-500.0,9.893e-05,2]
[348851240,1736809841785,-500.0,9.893e-05,2]
[348851241,1736809841795,-500.0,9.893e-05,2]
[348851242,1736809841804,-4084.54,9.893e-05,2]
[348851243,1736809841813,-500.0,9.893e-05,2]
[348851244,1736809841823,-500.0,9.893e-05,2]
[348851245,1736809841833,-706.21,9.893e-05,2]
[348851246,1736809841843,-500.0,9.893e-05,2]
[348851247,1736809841853,-500.0,9.893e-05,2]
[348851248,1736809841863,-500.0,9.893e-05,2]
[348851249,1736809841872,-500.0,9.893e-05,2]
[348851250,1736809841882,-500.0,9.893e-05,2]
[348851251,1736809841893,-500.0,9.893e-05,2]
[348851252,1736809841903,-1127.82,9.893e-05,2]
[348851253,1736809841913,-500.0,9.893e-05,2]
[348851254,1736809841922,-563.4,9.893e-05,2]
[348851255,1736809841932,-500.0,9.893e-05,2]
[348851256,1736809841944,-649.39,9.893e-05,2]
[348851257,1736809841953,-500.0,9.893e-05,2]
[348851258,1736809841963,-526.98,9.893e-05,2]
[348851259,1736809841972,-500.0,9.893e-05,2]
[348851260,1736809841981,-758.29,9.893e-05,2]
[348851261,1736809841991,-1266.61,9.893e-05,2]
[348851262,1736809842000,-500.0,9.893e-05,2]
[348851263,1736809842010,-500.0,9.893e-05,2]
[348851264,1736809842019,-1637.73,9.893e-05,2]
[348851265,1736809842030,-500.0,9.893e-05,2]
[348851266,1736809842039,-1045.22,9.893e-05,2]
[348851267,1736809842049,-166.64124435,9.894e-05,2]
[348851268,1736809842059,-500.0,9.894e-05,2]
[348851269,1736809842069,-500.0,9.894e-05,2]
[348851270,1736809842079,-500.0,9.894e-05,2]
[348851271,1736809842091,-904.2,9.894e-05,2]
[348851272,1736809842101,-500.0,9.894e-05,2]
[348851273,1736809842111,-975.77,9.894e-05,2]
[348851274,1736809842122,-500.0,9.894e-05,2]
[348851275,1736809842133,-912.67,9.894e-05,2]
[348851276,1736809842143,-500.0,9.894e-05,2]
[348851277,1736809842154,-500.0,9.894e-05,2]
[348851278,1736809842164,-500.0,9.894e-05,2]
[348851279,1736809842174,-533.33,9.894e-05,2]
[348851280,1736809842184,-500.0,9.894e-05,2]
[348851281,1736809842194,-500.0,9.894e-05,2]
[348851282,1736809842204,-500.0,9.894e-05,2]
[348851283,1736809842214,-500.0,9.894e-05,2]
[348851284,1736809842223,-1605.63,9.894e-05,2]
[348851285,1736809842234,-1702.12,9.894e-05,2]
[348851286,1736809842243,-1690.21,9.894e-05,2]
[348851287,1736809842253,-3764.24,9.894e-05,2]
[348851288,1736809842263,-1719.96,9.894e-05,2]
[348851289,1736809842272,-1380.8,9.894e-05,2]
[348851290,1736809842282,-1492.26,9.894e-05,2]
[348851291,1736809842292,-500.0,9.894e-05,2]
[348851292,1736809842302,-950.49,9.894e-05,2]
[348851293,1736809842312,-1665.96,9.894e-05,2]
[348851294,1736809842321,-2304.49,9.895e-05,2]
[348851295,1736809842331,-1911.81,9.895e-05,2]
[348851296,1736809842341,-9911.59,9.895e-05,2]
[348851297,1736809842350,-1404.68,9.895e-05,2]
[348851298,1736809842360,-924.72,9.895e-05,2]
[348851299,1736809842369,-2133.04,9.895e-05,2]
[348851300,1736809842379,-500.0,9.895e-05,2]
[348851301,1736809842388,-683.26,9.895e-05,2]
[348851302,1736809842398,-1479.07,9.895e-05,2]
[348851303,1736809842407,-1630.76,9.895e-05,2]
[348851304,1736809842417,-500.0,9.895e-05,2]
[348851305,1736809842429,-1000.0,9.895e-05,2]
[348851306,1736809842438,-1014.25,9.895e-05,2]
[348851307,1736809842448,-500.0,9.895e-05,2]
[348851308,1736809842458,-1900.0,9.9e-05,3]
[348851309,1736809842468,-265.62288493,9.9e-05,2]
[348851310,1736809842478,-17912.78275319,9.91e-05,2]
[348851311,1736809842488,-1000.0,9.95e-05,2]
[348851312,1736809842498,-1171.0,9.973e-05,2]
[348851313,1736809842508,-505.89279065,9.973e-05,2]
[348851314,1736809842517,-500.0,9.973e-05,2]
[348851315,1736809842528,-204.631,9.992e-05,2]
[348851317,1736809842540,-359.3888157,9.992e-05,2]
[348851318,1736809842550,-268.6790652,9.992e-05,2]
[348851319,1736809842560,-1820.4890966,9.992e-05,2]
[348851320,1736809842570,-3752.143,9.993e-05,2]
[348851321,1736809842580,-438.2339805,9.993e-05,2]
[348851322,1736809842589,-327.6237075,9.993e-05,2]
[348851323,1736809842599,-2219.8803868,9.993e-05,2]
[348851324,1736809842610,-500.0,9.998e-05,2]
[348851325,1736809842621,-1378.92,9.998e-05,2]
[348851326,1736809842632,-735.63,9.998e-05,2]
[348851327,1736809842642,-500.0,9.998e-05,2]
[348851328,1736809842652,-1262.57,9.998e-05,2]
[348851329,1736809842662,-814.16,9.998e-05,2]
[348851330,1736809842672,-1609.91,9.998e-05,2]
[348851332,1736809842682,-1058.7,9.998e-05,2]
[348851333,1736809842692,-2176.42,9.998e-05,2]
[348851334,1736809842701,-1143.25,9.998e-05,2]
[348851335,1736809842711,-2687.33,9.998e-05,2]
[348851336,1736809842720,-1000.0,9.999e-05,2]
[348851337,1736809842730,-978.37,9.999e-05,2]
[348851338,1736809842739,-500.0,9.999e-05,2]
[348851339,1736809842748,-1093.87,9.999e-05,2]
[348851340,1736809842758,-753.96,9.999e-05,2]
[348851341,1736809842767,-1867.66,9.999e-05,2]
[348851342,1736809842776,-1516.45,9.999e-05,2]
[348851343,1736809842785,-2304.22,9.999e-05,2]
[348851344,1736809842794,-2138.41,9.999e-05,2]
[348851345,1736809842804,-578.87,9.999e-05,2]
[348851346,1736809842813,-1522.53,9.999e-05,2]
[348851347,1736809842822,-1981.64,9.999e-05,2]
[348851348,1736809842831,-1714.16,9.999e-05,2]
[348851349,1736809842841,-3614.1,9.999e-05,2]
[348851350,1736809842850,-1087.0,0.0001,2]
[348851351,1736809842860,-1600559.49904965,0.0001,2]
[348851352,1736809842869,-412622.74171053,0.0001,2]
[348851353,1736809842879,-902.2103,0.0001,2]
[348851354,1736809842888,-1352414.26952224,0.0001,2]
[348851355,1736809842904,-1012.13738047,0.0001,2]
[348851356,1736809842916,-1918.13875,0.0001,2]
[348851357,1736809842928,-268.12099998,0.0001,2]
[348851358,1736809842939,-862.24427429,0.0001,2]
[348851359,1736809842950,-720.16650022,0.0001,2]
[348851360,1736809842973,-6467.1548543,0.0001,2]
[348851361,1736809842984,-8879.7612,0.0001,2]
[348851366,1736809843281,-673.91324,0.0001,2]
[348851367,1736809843293,-722.1506333,0.0001,2]
[348851368,1736809843319,-309.25041846,0.0001,2]
[348851369,1736809843341,-16726.73742979,0.0001,2]
[348851370,1736809843353,-13831.86760727,0.0001,2]
[348851371,1736809843726,-930.65114849,0.0001,2]
[348851372,1736809843742,-27484.5997021,0.0001,2]
[348851373,1736809843755,-792.83061176,0.0001,2]
[348851374,1736809843774,-1362.60514686,0.0001,2]
[348851375,1736809843785,-2914.44,0.0001,2]
[348851376,1736809843826,-958.81148113,0.0001,2]
[348851377,1736809843838,-2547.91315279,0.0001,2]
[348851378,1736809843850,-489.29187735,0.0001,2]
[348851379,1736809843862,-338.4250005,0.0001,2]
[348851380,1736809843874,-1053.4500145,0.0001,2]
[348851381,1736809843886,-56464.914136,0.0001,2]
[348851382,1736809843898,-701.666667,0.0001,2]
[348851383,1736809843910,-1006.62630079,0.0001,2]
[348851384,1736809843922,-352.72799642,0.0001,2]
[348851391,1736809845735,-2234.8,9.891e-05,2]
[348851392,1736809845745,-500.0,9.891e-05,2]
[348851393,1736809845755,-76742.4652384,0.0001,2]
[348851394,1736809845799,-271595.62376834,0.0001,2]
[348851395,1736809845864,-14512.08150685,0.0001,2]
[348851396,1736809845972,-540.441375,0.0001,2]
[348851397,1736809845984,-394.72,0.0001,2]
[348851398,1736809845998,-853.05,0.0001,2]
[348851399,1736809846009,-704.82880413,0.0001,2]
[348851400,1736809846021,-1216.1,0.0001,2]
[348851401,1736809846033,-1973.17459424,0.0001,2]
[348851402,1736809846045,-274409.32258183,0.0001,2]
[348851405,1736809994013,500.0,0.00022789,120]
[348851406,1736810003012,2000.0,0.00022357,120]
[348851407,1736810003596,2000.0,0.00022999,120]
[348851408,1736810014367,500.0,0.00022999,120]
[348851409,1736810041126,200.0,0.00022144,120]
[348851410,1736810041479,200.0,0.00022999,120]
[348851413,1736810358141,827.86,8.219e-05,2]
[348851415,1736810593010,500.0,0.00022705,120]
[348851416,1736810601617,2000.0,0.00022483,120]
[348851417,1736810611267,500.0,0.00022468,120]
[348851418,1736810636598,200.0,0.00021932,120]
[348851419,1736810636940,200.0,0.00022898,120]
[348851420,1736810726899,478.58442455,0.0002,120]
[348851421,1736810755455,1924.42106347,0.00017,120]
[348851433,1736810917215,5039.0,0.00023,120]
[348851446,1736811032004,-250.0,8.771e-05,2]
[348851447,1736811032014,-2000.0,8.773e-05,2]
[348851448,1736811032023,-200.0,8.773e-05,2]
[348851449,1736811032033,-166.4,8.814e-05,2]
[348851450,1736811032042,-316.46,8.883e-05,2]
[348851451,1736811032051,-602.93,8.897e-05,2]
[348851452,1736811032061,-1500.0,8.898e-05,2]
[348851453,1736811032070,-1000.0,8.922e-05,2]
[348851454,1736811032080,-610.87,8.951e-05,2]
[348851455,1736811032090,-300.0,8.972e-05,2]
[348851456,1736811032099,-23900.0,8.973e-05,2]
[348851457,1736811032109,-250.0,9.052e-05,2]
[348851458,1736811032117,-250.0,9.081e-05,2]
[348851459,1736811032127,-398.61,9.176e-05,2]
[348851460,1736811032137,-193.599,9.5e-05,2]
[348851461,1736811032147,-3916.85,9.589e-05,2]
[348851462,1736811032157,-1701.7451,9.791e-05,2]
[348851463,1736811032166,-381.355,9.792e-05,2]
[348851464,1736811032175,-1457.7939,9.792e-05,2]
[348851465,1736811032185,-2033.5827,9.792e-05,2]
[348851466,1736811032195,-420.0,9.869e-05,2]
[348851467,1736811032204,-1000.0,9.89e-05,2]
[348851468,1736811032214,-150.0,9.89e-05,2]
[348851469,1736811032223,-482.99015176,9.891e-05,2]
[348851470,1736811032278,-17.00984824,9.891e-05,2]
[348851471,1736811032289,-500.0,9.891e-05,2]
[348851472,1736811032298,-500.0,9.891e-05,2]
[348851473,1736811032308,-500.0,9.891e-05,2]
[348851474,1736811032318,-500.0,9.891e-05,2]
[348851475,1736811032329,-568.42,9.891e-05,2]
[348851476,1736811032340,-500.0,9.891e-05,2]
[348851477,1736811032350,-60.95035177,9.891e-05,2]
[348851532,1736811037910,-439.04964823,9.891e-05,2]
[348851533,1736811037919,-500.0,9.891e-05,2]
[348851534,1736811037929,-698.72,9.891e-05,2]
[348851535,1736811037939,-500.0,9.891e-05,2]
[348851536,1736811037949,-500.0,9.891e-05,2]
[348851537,1736811037958,-500.0,9.891e-05,2]
[348851538,1736811037967,-521.77,9.891e-05,2]
[348851539,1736811037977,-500.0,9.891e-05,2]
[348851540,1736811037988,-500.0,9.891e-05,2]
[348851541,1736811037997,-500.0,9.891e-05,2]
[348851542,1736811038007,-500.0,9.891e-05,2]
[348851543,1736811038016,-500.0,9.891e-05,2]
[348851544,1736811038026,-500.0,9.891e-05,2]
[348851545,1736811038036,-500.0,9.891e-05,2]
[348851546,1736811038046,-512.92,9.891e-05,2]
[348851547,1736811038057,-500.0,9.891e-05,2]
[348851548,1736811038067,-500.0,9.891e-05,2]
[348851549,1736811038076,-500.0,9.891e-05,2]
[348851550,1736811038085,-500.0,9.891e-05,2]
[348851551,1736811038095,-500.0,9.891e-05,2]
[348851552,1736811038105,-500.0,9.891e-05,2]
[348851553,1736811038114,-500.0,9.891e-05,2]
[348851554,1736811038124,-500.0,9.891e-05,2]
[348851555,1736811038133,-500.0,9.891e-05,2]
[348851556,1736811038143,-567.49,9.891e-05,2]
[348851557,1736811038152,-500.0,9.891e-05,2]
[348851558,1736811038162,-680.16,9.891e-05,2]
[348851559,1736811038171,-500.0,9.891e-05,2]
[348851560,1736811038181,-500.0,9.891e-05,2]
[348851561,1736811038190,-500.0,9.891e-05,2]
[348851562,1736811038200,-500.0,9.891e-05,2]
[348851563,1736811038210,-500.0,9.891e-05,2]
[348851564,1736811038219,-500.0,9.891e-05,2]
[348851565,1736811038228,-698.36,9.891e-05,2]
[348851566,1736811038238,-500.0,9.891e-05,2]
[348851567,1736811038247,-500.0,9.891e-05,2]
[348851568,1736811038256,-500.0,9.891e-05,2]
[348851569,1736811038266,-838.87,9.891e-05,2]
[348851570,1736811038275,-631.06,9.891e-05,2]
[348851571,1736811038284,-775.38,9.891e-05,2]
[348851572,1736811038293,-500.0,9.891e-05,2]
[348851573,1736811038303,-466.45466118,9.891e-05,2]
[348851574,1736811038312,-305.89294284,9.891e-05,2]
[348851576,1736811038321,-500.0,9.891e-05,2]
[348851578,1736811038330,-500.0,9.891e-05,2]
[348851579,1736811038339,-500.0,9.891e-05,2]
[348851580,1736811038349,-500.0,9.891e-05,2]
[348851581,1736811038358,-500.0,9.891e-05,2]
[348851582,1736811038368,-500.0,9.891e-05,2]
[348851583,1736811038378,-500.0,9.891e-05,2]
[348851584,1736811038387,-676.79,9.891e-05,2]
[348851585,1736811038397,-500.0,9.891e-05,2]
[348851586,1736811038406,-500.0,9.891e-05,2]
[348851587,1736811038415,-500.0,9.891e-05,2]
[348851588,1736811038424,-500.0,9.891e-05,2]
[348851589,1736811038433,-500.0,9.891e-05,2]
[348851590,1736811038442,-500.0,9.891e-05,2]
[348851591,1736811038451,-1080.83,9.891e-05,2]
[348851592,1736811038460,-500.0,9.891e-05,2]